[Event "Live Chess"]
[Site "Chess.com"]
[Date "2024.06.02"]
[Round "-"]
[White "BearFromUkraine"]
[Black "LL220284LL"]
[Result "0-1"]
[WhiteElo "988"]
[BlackElo "2500"]
[TimeControl "300"]
[EndTime "5:07:40 PDT"]
[Termination "LL220284LL won by checkmate"]

1. e4 {[%clk 0:04:55.3]} 1... c5 {[%clk 0:04:58.6]} 2. Nf3 {[%clk 0:04:54]} 2...
g6 {[%clk 0:04:57.6]} 3. d4 {[%clk 0:04:53.3]} 3... cxd4 {[%clk 0:04:57.5]} 4.
Nxd4 {[%clk 0:04:52.3]} 4... Bg7 {[%clk 0:04:56.5]} 5. Be3 {[%clk 0:04:49.7]}
5... Nc6 {[%clk 0:04:55.5]} 6. Nxc6 {[%clk 0:04:48.1]} 6... bxc6 {[%clk
0:04:55.4]} 7. Nc3 {[%clk 0:04:46]} 7... Nf6 {[%clk 0:04:53.3]} 8. Be2 {[%clk
0:04:42.3]} 8... O-O {[%clk 0:04:51.9]} 9. O-O {[%clk 0:04:39.9]} 9... d5 {[%clk
0:04:46.4]} 10. exd5 {[%clk 0:04:36.2]} 10... Nxd5 {[%clk 0:04:43.6]} 11. Nxd5
{[%clk 0:04:32.3]} 11... cxd5 {[%clk 0:04:43.5]} 12. c3 {[%clk 0:04:31]} 12...
e5 {[%clk 0:04:39.8]} 13. Bc5 {[%clk 0:04:27]} 13... Re8 {[%clk 0:04:37.5]} 14.
Qd2 {[%clk 0:04:13.4]} 14... Bb7 {[%clk 0:04:34.2]} 15. Ba3 {[%clk 0:04:09.4]}
15... d4 {[%clk 0:04:30.1]} 16. cxd4 {[%clk 0:04:03.7]} 16... exd4 {[%clk
0:04:30]} 17. Qd3 {[%clk 0:03:54.1]} 17... Be4 {[%clk 0:04:17.9]} 18. Qd2 {[%clk
0:03:27.3]} 18... d3 {[%clk 0:04:11.6]} 19. Bd1 {[%clk 0:03:09.9]} 19... Rc8
{[%clk 0:04:02.6]} 20. Bb3 {[%clk 0:03:07]} 20... Qf6 {[%clk 0:03:41.4]} 21.
Rac1 {[%clk 0:02:55.6]} 21... Bf5 {[%clk 0:03:34.6]} 22. Rxc8 {[%clk 0:02:39.2]}
22... Rxc8 {[%clk 0:03:32.1]} 23. Rc1 {[%clk 0:02:31.3]} 23... Re8 {[%clk
0:03:30.8]} 24. Bc4 {[%clk 0:02:24.1]} 24... Qd4 {[%clk 0:03:23.6]} 25. b3
{[%clk 0:02:13.9]} 25... Re2 {[%clk 0:03:21.2]} 26. Qc3 {[%clk 0:02:03.1]} 26...
Qxc3 {[%clk 0:03:19]} 27. Rxc3 {[%clk 0:02:01.3]} 27... Re1# {[%clk 0:03:18.2]}
0-1

[Event "Live Chess"]
[Site "Chess.com"]
[Date "2024.06.02"]
[Round "-"]
[White "JanMur7"]
[Black "Ferrarifan27"]
[Result "1-0"]
[WhiteElo "2296"]
[BlackElo "2153"]
[TimeControl "300"]
[EndTime "5:07:59 PDT"]
[Termination "JanMur7 won by checkmate"]

1. e4 {[%clk 0:04:57]} 1... e5 {[%clk 0:04:57.5]} 2. Nf3 {[%clk 0:04:55.3]} 2...
Nc6 {[%clk 0:04:55.9]} 3. Bc4 {[%clk 0:04:54.9]} 3... Bc5 {[%clk 0:04:52.1]} 4.
d3 {[%clk 0:04:54.2]} 4... Nf6 {[%clk 0:04:48.7]} 5. Nc3 {[%clk 0:04:51.5]} 5...
O-O {[%clk 0:04:46.1]} 6. Bg5 {[%clk 0:04:41.7]} 6... h6 {[%clk 0:04:43.9]} 7.
Bh4 {[%clk 0:04:40.1]} 7... Bb4 {[%clk 0:04:42.9]} 8. h3 {[%clk 0:04:37.3]} 8...
d6 {[%clk 0:04:35.1]} 9. g4 {[%clk 0:04:33.8]} 9... Nd4 {[%clk 0:04:19.8]} 10.
a3 {[%clk 0:04:21.8]} 10... Bxc3+ {[%clk 0:04:07]} 11. bxc3 {[%clk 0:04:21.7]}
11... Nxf3+ {[%clk 0:04:05.9]} 12. Qxf3 {[%clk 0:04:21.6]} 12... g5 {[%clk
0:04:03.3]} 13. Bg3 {[%clk 0:04:18.3]} 13... Be6 {[%clk 0:03:59.1]} 14. Bxe6
{[%clk 0:04:12.6]} 14... fxe6 {[%clk 0:03:55.2]} 15. Qe3 {[%clk 0:04:11.9]}
15... Kg7 {[%clk 0:03:51.2]} 16. f3 {[%clk 0:04:08.2]} 16... Qd7 {[%clk
0:03:46.4]} 17. h4 {[%clk 0:04:06.1]} 17... Kg6 {[%clk 0:03:40.7]} 18. hxg5
{[%clk 0:04:04]} 18... hxg5 {[%clk 0:03:39.8]} 19. Ke2 {[%clk 0:03:55.8]} 19...
Rh8 {[%clk 0:03:38.4]} 20. Qf2 {[%clk 0:03:48.3]} 20... Qg7 {[%clk 0:03:32.7]}
21. Qg2 {[%clk 0:03:44.5]} 21... Rxh1 {[%clk 0:03:29.3]} 22. Rxh1 {[%clk
0:03:42.3]} 22... Rh8 {[%clk 0:03:28.2]} 23. c4 {[%clk 0:03:39.5]} 23... Rxh1
{[%clk 0:03:25.8]} 24. Qxh1 {[%clk 0:03:39.4]} 24... Qh6 {[%clk 0:03:23.1]} 25.
Qxh6+ {[%clk 0:03:37.9]} 25... Kxh6 {[%clk 0:03:22.1]} 26. Bf2 {[%clk
0:03:37.4]} 26... a6 {[%clk 0:03:19.2]} 27. Kd2 {[%clk 0:03:36]} 27... Kg6
{[%clk 0:03:16.8]} 28. c5 {[%clk 0:03:31.5]} 28... Nd7 {[%clk 0:03:09.7]} 29.
cxd6 {[%clk 0:03:29.7]} 29... cxd6 {[%clk 0:03:08.8]} 30. Kc3 {[%clk 0:03:28.1]}
30... d5 {[%clk 0:03:03.5]} 31. Kb4 {[%clk 0:03:24.8]} 31... b6 {[%clk
0:03:02.7]} 32. a4 {[%clk 0:03:21.3]} 32... Kf6 {[%clk 0:02:55.1]} 33. a5 {[%clk
0:03:19.3]} 33... b5 {[%clk 0:02:53.3]} 34. Ba7 {[%clk 0:02:43.2]} 34... Kg6
{[%clk 0:02:50.8]} 35. exd5 {[%clk 0:02:36.6]} 35... exd5 {[%clk 0:02:49.1]} 36.
c4 {[%clk 0:02:36.1]} 36... dxc4 {[%clk 0:02:47.2]} 37. dxc4 {[%clk 0:02:36]}
37... bxc4 {[%clk 0:02:46.2]} 38. Kxc4 {[%clk 0:02:35.9]} 38... Nf6 {[%clk
0:02:35.4]} 39. Kd3 {[%clk 0:02:31]} 39... e4+ {[%clk 0:02:22.5]} 40. fxe4
{[%clk 0:02:07.5]} 40... Nxg4 {[%clk 0:02:21.1]} 41. Kd4 {[%clk 0:02:05]} 41...
Kf6 {[%clk 0:02:20.2]} 42. Kd5 {[%clk 0:02:03.2]} 42... Ke7 {[%clk 0:02:12.9]}
43. Kc6 {[%clk 0:01:50.6]} 43... Nf6 {[%clk 0:02:11.6]} 44. e5 {[%clk
0:01:45.7]} 44... Nd7 {[%clk 0:02:07]} 45. Bd4 {[%clk 0:01:44.2]} 45... g4
{[%clk 0:02:03.3]} 46. Kb7 {[%clk 0:01:38.4]} 46... g3 {[%clk 0:02:00]} 47. Kxa6
{[%clk 0:01:35.4]} 47... g2 {[%clk 0:01:59.2]} 48. Kb7 {[%clk 0:01:29.4]} 48...
Nxe5 {[%clk 0:01:58.2]} 49. a6 {[%clk 0:01:22]} 49... Nc4 {[%clk 0:01:43.9]} 50.
a7 {[%clk 0:00:57.1]} 50... Nd6+ {[%clk 0:01:42.4]} 51. Kc6 {[%clk 0:00:55.9]}
51... Nf5 {[%clk 0:01:37.8]} 52. Bc5+ {[%clk 0:00:38]} 52... Ke6 {[%clk
0:01:35.3]} 53. a8=Q {[%clk 0:00:34.6]} 53... Ne7+ {[%clk 0:01:34.2]} 54. Kb5
{[%clk 0:00:31.8]} 54... Nd5 {[%clk 0:01:32.5]} 55. Qg8+ {[%clk 0:00:30.6]}
55... Ke5 {[%clk 0:01:31.1]} 56. Qxg2 {[%clk 0:00:29.9]} 56... Nc7+ {[%clk
0:01:30.3]} 57. Kc6 {[%clk 0:00:28.1]} 57... Ne6 {[%clk 0:01:29.2]} 58. Qe2+
{[%clk 0:00:26.5]} 58... Kf6 {[%clk 0:01:27.8]} 59. Qf3+ {[%clk 0:00:22.9]}
59... Ke5 {[%clk 0:01:26.1]} 60. Qd5+ {[%clk 0:00:22.2]} 60... Kf6 {[%clk
0:01:25]} 61. Bd4+ {[%clk 0:00:22.1]} 61... Kf7 {[%clk 0:01:23.3]} 62. Kd6
{[%clk 0:00:20.7]} 62... Kf8 {[%clk 0:01:20.8]} 63. Kxe6 {[%clk 0:00:19.2]}
63... Kg8 {[%clk 0:01:18.9]} 64. Qa8+ {[%clk 0:00:17.9]} 64... Kh7 {[%clk
0:01:18.1]} 65. Qh8+ {[%clk 0:00:17.8]} 65... Kg6 {[%clk 0:01:17.1]} 66. Qg7+
{[%clk 0:00:16]} 66... Kh5 {[%clk 0:01:16.2]} 67. Kf5 {[%clk 0:00:15.6]} 67...
Kh4 {[%clk 0:01:15.8]} 68. Qg4# {[%clk 0:00:15.1]} 1-0

[Event "Live Chess"]
[Site "Chess.com"]
[Date "2024.06.02"]
[Round "-"]
[White "halfberg"]
[Black "KeithArkell"]
[Result "0-1"]
[WhiteElo "1897"]
[BlackElo "2431"]
[TimeControl "300"]
[EndTime "5:08:04 PDT"]
[Termination "KeithArkell won on time"]

1. e4 {[%clk 0:04:55.3]} 1... c6 {[%clk 0:04:59.3]} 2. d4 {[%clk 0:04:52.5]}
2... d5 {[%clk 0:04:58.5]} 3. Nc3 {[%clk 0:04:51.2]} 3... dxe4 {[%clk
0:04:57.6]} 4. Nxe4 {[%clk 0:04:50.1]} 4... Nd7 {[%clk 0:04:56.9]} 5. Qe2 {[%clk
0:04:47.5]} 5... Ndf6 {[%clk 0:04:55.5]} 6. Nf3 {[%clk 0:04:40.8]} 6... Nxe4
{[%clk 0:04:54.4]} 7. Qxe4 {[%clk 0:04:39.2]} 7... Nf6 {[%clk 0:04:54.1]} 8. Qh4
{[%clk 0:04:22.9]} 8... Bf5 {[%clk 0:04:49.7]} 9. c3 {[%clk 0:04:18.5]} 9... e6
{[%clk 0:04:48.5]} 10. Be2 {[%clk 0:04:09.5]} 10... Be7 {[%clk 0:04:47.4]} 11.
O-O {[%clk 0:04:03.7]} 11... O-O {[%clk 0:04:40]} 12. Bg5 {[%clk 0:04:01.2]}
12... Nd5 {[%clk 0:04:36.4]} 13. Bxe7 {[%clk 0:03:50.9]} 13... Qxe7 {[%clk
0:04:35.2]} 14. Qxe7 {[%clk 0:03:48.7]} 14... Nxe7 {[%clk 0:04:34.5]} 15. Ne5
{[%clk 0:03:20.9]} 15... Rfd8 {[%clk 0:04:28.1]} 16. Rfd1 {[%clk 0:03:12.7]}
16... f6 {[%clk 0:04:25.9]} 17. Nf3 {[%clk 0:03:03.9]} 17... Bg4 {[%clk
0:04:25]} 18. h3 {[%clk 0:03:02.2]} 18... Bxf3 {[%clk 0:04:24.1]} 19. Bxf3
{[%clk 0:03:00.9]} 19... Rd6 {[%clk 0:04:22.7]} 20. Rd2 {[%clk 0:02:56.6]} 20...
Rad8 {[%clk 0:04:21.1]} 21. Rad1 {[%clk 0:02:55.3]} 21... b6 {[%clk 0:04:18.4]}
22. g3 {[%clk 0:02:37.7]} 22... c5 {[%clk 0:04:17]} 23. Kf1 {[%clk 0:02:29.2]}
23... Kf7 {[%clk 0:04:14.2]} 24. Ke2 {[%clk 0:02:25.6]} 24... Nf5 {[%clk
0:03:42.9]} 25. dxc5 {[%clk 0:02:20.1]} 25... Rxd2+ {[%clk 0:03:40.5]} 26. Rxd2
{[%clk 0:02:20]} 26... Rxd2+ {[%clk 0:03:39]} 27. Kxd2 {[%clk 0:02:19.5]} 27...
bxc5 {[%clk 0:03:38.4]} 28. Kd3 {[%clk 0:02:14.2]} 28... Nd6 {[%clk 0:03:37.4]}
29. b4 {[%clk 0:02:06.6]} 29... cxb4 {[%clk 0:03:35.8]} 30. cxb4 {[%clk
0:02:05.1]} 30... Ke7 {[%clk 0:03:35.5]} 31. a4 {[%clk 0:02:00.6]} 31... e5
{[%clk 0:03:34.8]} 32. Bd5 {[%clk 0:01:56.9]} 32... Kd7 {[%clk 0:03:33.5]} 33.
g4 {[%clk 0:01:46.6]} 33... h6 {[%clk 0:03:32.5]} 34. Kc3 {[%clk 0:01:38.2]}
34... Nc8 {[%clk 0:03:29.4]} 35. a5 {[%clk 0:01:33]} 35... Ne7 {[%clk
0:03:27.8]} 36. Be4 {[%clk 0:01:23]} 36... g6 {[%clk 0:03:26.1]} 37. b5 {[%clk
0:01:20.3]} 37... f5 {[%clk 0:03:25.4]} 38. gxf5 {[%clk 0:01:17.7]} 38... gxf5
{[%clk 0:03:25.3]} 39. Bb7 {[%clk 0:00:53.5]} 39... Kc7 {[%clk 0:03:18.6]} 40.
Bg2 {[%clk 0:00:45.4]} 40... Ng6 {[%clk 0:03:15.6]} 41. Kc4 {[%clk 0:00:36.7]}
41... Nf4 {[%clk 0:03:14.5]} 42. Bf1 {[%clk 0:00:35.7]} 42... Kd6 {[%clk
0:03:09.2]} 43. Kb4 {[%clk 0:00:30.2]} 43... Nd5+ {[%clk 0:03:06.3]} 44. Kc4
{[%clk 0:00:28.5]} 44... Nf4 {[%clk 0:03:03.4]} 45. Kb4 {[%clk 0:00:27.2]} 45...
h5 {[%clk 0:03:02.9]} 46. b6 {[%clk 0:00:21.3]} 46... axb6 {[%clk 0:03:01.4]}
47. axb6 {[%clk 0:00:19.2]} 47... Kc6 {[%clk 0:02:52.4]} 48. Ka5 {[%clk
0:00:18.1]} 48... Nd5 {[%clk 0:02:50.6]} 49. Ka6 {[%clk 0:00:15.1]} 49... Nxb6
{[%clk 0:02:49]} 50. Bb5+ {[%clk 0:00:12.4]} 50... Kc7 {[%clk 0:02:46.7]} 51. h4
{[%clk 0:00:09.4]} 51... Nd5 {[%clk 0:02:43.6]} 52. Be8 {[%clk 0:00:08.2]} 52...
Nf6 {[%clk 0:02:41.5]} 53. Bg6 {[%clk 0:00:06.9]} 53... f4 {[%clk 0:02:41.1]}
54. Kb5 {[%clk 0:00:06.2]} 54... Kd6 {[%clk 0:02:40.4]} 55. Kc4 {[%clk
0:00:05.6]} 55... Ke7 {[%clk 0:02:35]} 56. f3 {[%clk 0:00:04.7]} 56... Kf8
{[%clk 0:02:33.3]} 57. Kd3 {[%clk 0:00:03.2]} 57... Kg7 {[%clk 0:02:32.7]} 58.
Bf5 {[%clk 0:00:01.7]} 58... Kf7 {[%clk 0:02:32]} 59. Bc8 {[%clk 0:00:00.1]}
59... Ne8 {[%clk 0:02:30.9]} 0-1

[Event "Live Chess"]
[Site "Chess.com"]
[Date "2024.06.02"]
[Round "-"]
[White "Tatarinov_Maxim"]
[Black "MagnersCarlsberg2870"]
[Result "1-0"]
[WhiteElo "2295"]
[BlackElo "1767"]
[TimeControl "300"]
[EndTime "5:08:21 PDT"]
[Termination "Tatarinov_Maxim won by resignation"]

1. d4 {[%clk 0:04:56.1]} 1... Nf6 {[%clk 0:04:54.5]} 2. c4 {[%clk 0:04:55.2]}
2... e5 {[%clk 0:04:51.2]} 3. dxe5 {[%clk 0:04:53.6]} 3... Ne4 {[%clk
0:04:50.1]} 4. Nf3 {[%clk 0:04:51.1]} 4... Bb4+ {[%clk 0:04:47.1]} 5. Nbd2
{[%clk 0:04:49.4]} 5... d6 {[%clk 0:04:42.7]} 6. exd6 {[%clk 0:04:46.1]} 6...
Bxd6 {[%clk 0:04:41.6]} 7. e3 {[%clk 0:04:45.4]} 7... Nxd2 {[%clk 0:04:36.5]} 8.
Bxd2 {[%clk 0:04:43.9]} 8... Bg4 {[%clk 0:04:34.7]} 9. Be2 {[%clk 0:04:42.3]}
9... O-O {[%clk 0:04:32.5]} 10. Bc3 {[%clk 0:04:38.5]} 10... Nc6 {[%clk
0:04:27.7]} 11. O-O {[%clk 0:04:36.2]} 11... Bxf3 {[%clk 0:04:23.3]} 12. Bxf3
{[%clk 0:04:34.8]} 12... Qh4 {[%clk 0:04:22.2]} 13. g3 {[%clk 0:04:32.3]} 13...
Qxc4 {[%clk 0:04:12.9]} 14. Qe2 {[%clk 0:04:18.6]} 14... Qe6 {[%clk 0:04:02.9]}
15. Rfd1 {[%clk 0:04:13]} 15... Rad8 {[%clk 0:03:59.8]} 16. Bg2 {[%clk
0:04:04.5]} 16... Be5 {[%clk 0:03:53.4]} 17. Rxd8 {[%clk 0:03:48.6]} 17... Rxd8
{[%clk 0:03:51.6]} 18. Bxe5 {[%clk 0:03:46.6]} 18... Nxe5 {[%clk 0:03:47.1]} 19.
b3 {[%clk 0:03:44.9]} 19... Qf6 {[%clk 0:03:42.3]} 20. Rd1 {[%clk 0:03:42.3]}
20... Rxd1+ {[%clk 0:03:29.8]} 21. Qxd1 {[%clk 0:03:42.2]} 21... g6 {[%clk
0:03:27.5]} 22. Bxb7 {[%clk 0:03:35.6]} 22... c6 {[%clk 0:03:24.1]} 23. Ba6
{[%clk 0:03:29.2]} 23... Nf3+ {[%clk 0:03:19.1]} 24. Kg2 {[%clk 0:03:27.3]}
24... Ne5 {[%clk 0:03:13.2]} 25. Be2 {[%clk 0:03:24.9]} 25... h5 {[%clk
0:03:09.9]} 26. h3 {[%clk 0:03:22.6]} 26... h4 {[%clk 0:03:05.3]} 27. g4 {[%clk
0:03:12.7]} 27... c5 {[%clk 0:02:56.5]} 28. Qd5 {[%clk 0:02:53.7]} 28... Kg7
{[%clk 0:02:47.3]} 29. Qxc5 {[%clk 0:02:50.4]} 29... g5 {[%clk 0:02:36]} 30.
Qxa7 {[%clk 0:02:47]} 1-0

[Event "Live Chess"]
[Site "Chess.com"]
[Date "2024.06.02"]
[Round "-"]
[White "PureDashingOctopus"]
[Black "GwaryTek"]
[Result "1-0"]
[WhiteElo "2281"]
[BlackElo "1833"]
[TimeControl "300"]
[EndTime "5:08:24 PDT"]
[Termination "PureDashingOctopus won by resignation"]

1. e4 {[%clk 0:04:58.4]} 1... Nf6 {[%clk 0:04:51.9]} 2. e5 {[%clk 0:04:57.1]}
2... Nd5 {[%clk 0:04:49.9]} 3. d4 {[%clk 0:04:56.1]} 3... d6 {[%clk 0:04:36.6]}
4. exd6 {[%clk 0:04:53.7]} 4... cxd6 {[%clk 0:04:35.4]} 5. Nf3 {[%clk
0:04:52.2]} 5... g6 {[%clk 0:04:31]} 6. Be2 {[%clk 0:04:50.4]} 6... Bg7 {[%clk
0:04:29.5]} 7. O-O {[%clk 0:04:49]} 7... O-O {[%clk 0:04:28]} 8. c4 {[%clk
0:04:45.9]} 8... Nc7 {[%clk 0:04:27.1]} 9. Nc3 {[%clk 0:04:43.5]} 9... Nc6
{[%clk 0:04:25.4]} 10. Be3 {[%clk 0:04:41.8]} 10... d5 {[%clk 0:04:09.8]} 11. c5
{[%clk 0:04:38.4]} 11... Bg4 {[%clk 0:04:08.3]} 12. a3 {[%clk 0:04:36.2]} 12...
Bxf3 {[%clk 0:03:58.3]} 13. Bxf3 {[%clk 0:04:33.8]} 13... e5 {[%clk 0:03:58.2]}
14. dxe5 {[%clk 0:04:31.7]} 14... Nxe5 {[%clk 0:03:19.1]} 15. Bxd5 {[%clk
0:04:27.3]} 15... Nxd5 {[%clk 0:03:13.4]} 16. Qxd5 {[%clk 0:04:12.7]} 16... Qxd5
{[%clk 0:03:11]} 17. Nxd5 {[%clk 0:04:12.6]} 17... Nc4 {[%clk 0:03:10.6]} 18.
Bg5 {[%clk 0:03:41]} 18... Nxb2 {[%clk 0:02:41.9]} 19. Rab1 {[%clk 0:03:36]}
19... Nc4 {[%clk 0:02:05.4]} 20. Rxb7 {[%clk 0:03:28.8]} 20... Nxa3 {[%clk
0:02:00.9]} 21. c6 {[%clk 0:03:16.8]} 21... f6 {[%clk 0:01:59.4]} 22. Bf4 {[%clk
0:03:06.3]} 22... Nc4 {[%clk 0:01:56.7]} 23. c7 {[%clk 0:03:03.6]} 23... Nb6
{[%clk 0:01:48.9]} 24. Nxb6 {[%clk 0:02:59.7]} 24... axb6 {[%clk 0:01:48.8]} 25.
Rb8 {[%clk 0:02:53.3]} 25... Rc8 {[%clk 0:01:35]} 26. Rxc8+ {[%clk 0:02:47.5]}
26... Rxc8 {[%clk 0:01:33.4]} 27. Rd1 {[%clk 0:02:46.9]} 27... Kf7 {[%clk
0:01:24]} 28. Rd8 {[%clk 0:02:43.3]} 28... Rxc7 {[%clk 0:00:38.8]} 29. Bxc7
{[%clk 0:02:39.9]} 1-0

[Event "Live Chess"]
[Site "Chess.com"]
[Date "2024.06.02"]
[Round "-"]
[White "defenderalist"]
[Black "NeilDruggan73"]
[Result "0-1"]
[WhiteElo "1544"]
[BlackElo "1714"]
[TimeControl "300"]
[EndTime "5:09:14 PDT"]
[Termination "NeilDruggan73 won by resignation"]

1. e4 {[%clk 0:04:58.3]} 1... d6 {[%clk 0:04:58.7]} 2. d4 {[%clk 0:04:57.1]}
2... Nf6 {[%clk 0:04:58]} 3. Nc3 {[%clk 0:04:57]} 3... g6 {[%clk 0:04:56.8]} 4.
Bc4 {[%clk 0:04:52.1]} 4... Bg7 {[%clk 0:04:55.1]} 5. Be3 {[%clk 0:04:49.6]}
5... O-O {[%clk 0:04:53.1]} 6. h3 {[%clk 0:04:47]} 6... Nxe4 {[%clk 0:04:51.9]}
7. Nxe4 {[%clk 0:04:44.5]} 7... d5 {[%clk 0:04:50.7]} 8. Bxd5 {[%clk 0:04:33.3]}
8... Qxd5 {[%clk 0:04:49]} 9. Qf3 {[%clk 0:04:23.3]} 9... c6 {[%clk 0:04:32.8]}
10. Ne2 {[%clk 0:04:18]} 10... Bf5 {[%clk 0:04:29.1]} 11. N2c3 {[%clk
0:04:09.5]} 11... Qc4 {[%clk 0:04:21.1]} 12. O-O-O {[%clk 0:03:57.7]} 12... a5
{[%clk 0:04:06]} 13. g4 {[%clk 0:03:56.3]} 13... Be6 {[%clk 0:04:02]} 14. b3
{[%clk 0:03:53]} 14... Qb4 {[%clk 0:03:58]} 15. Kb2 {[%clk 0:03:47]} 15... a4
{[%clk 0:03:55.9]} 16. a3 {[%clk 0:03:40.1]} 16... Qa5 {[%clk 0:03:51.5]} 17. b4
{[%clk 0:03:37.8]} 17... Qc7 {[%clk 0:03:48.1]} 18. Nc5 {[%clk 0:03:29.9]} 18...
b6 {[%clk 0:03:43.2]} 19. Nxe6 {[%clk 0:03:28.6]} 19... fxe6 {[%clk 0:03:42.8]}
20. Qe4 {[%clk 0:03:14.4]} 20... Qd7 {[%clk 0:03:32.4]} 21. h4 {[%clk 0:03:12]}
21... Ra7 {[%clk 0:03:29.5]} 22. h5 {[%clk 0:03:09.8]} 22... c5 {[%clk 0:03:25]}
23. dxc5 {[%clk 0:03:00.4]} 23... Qc6 {[%clk 0:03:23.8]} 24. Qc4 {[%clk
0:02:16.3]} 24... b5 {[%clk 0:03:17.7]} 25. Qe2 {[%clk 0:02:09]} 25... Rd7
{[%clk 0:03:08.1]} 26. Rxd7 {[%clk 0:01:54.2]} 26... Nxd7 {[%clk 0:03:04.7]} 27.
f3 {[%clk 0:01:43.2]} 27... Ne5 {[%clk 0:02:56.3]} 28. hxg6 {[%clk 0:01:21.3]}
28... hxg6 {[%clk 0:02:47.5]} 29. Qh2 {[%clk 0:01:12]} 29... Nc4+ {[%clk
0:02:43.6]} 30. Ka2 {[%clk 0:01:00.7]} 30... Nxe3 {[%clk 0:02:36.4]} 31. Ne4
{[%clk 0:00:51.6]} 31... Qd5+ {[%clk 0:02:33.2]} 32. Kb1 {[%clk 0:00:44.4]}
32... Rxf3 {[%clk 0:02:23.1]} 33. Qh7+ {[%clk 0:00:38.4]} 33... Kf7 {[%clk
0:02:20.7]} 34. Ng5+ {[%clk 0:00:34.7]} 34... Qxg5 {[%clk 0:02:18.1]} 0-1

[Event "Live Chess"]
[Site "Chess.com"]
[Date "2024.06.02"]
[Round "-"]
[White "WilliamofOrange16th"]
[Black "slava_ukr"]
[Result "0-1"]
[WhiteElo "2002"]
[BlackElo "2375"]
[TimeControl "300"]
[EndTime "5:09:24 PDT"]
[Termination "slava_ukr won by resignation"]

1. e4 {[%clk 0:04:58.9]} 1... d5 {[%clk 0:04:59.2]} 2. exd5 {[%clk 0:04:57.9]}
2... Qxd5 {[%clk 0:04:58.3]} 3. Nf3 {[%clk 0:04:57]} 3... Nf6 {[%clk 0:04:57.2]}
4. Be2 {[%clk 0:04:56.2]} 4... c6 {[%clk 0:04:55.8]} 5. O-O {[%clk 0:04:55.8]}
5... Bf5 {[%clk 0:04:54.5]} 6. Nc3 {[%clk 0:04:54.2]} 6... Qd6 {[%clk
0:04:53.4]} 7. d4 {[%clk 0:04:46.5]} 7... e6 {[%clk 0:04:52.5]} 8. a3 {[%clk
0:04:42.1]} 8... Nbd7 {[%clk 0:04:51.4]} 9. Nh4 {[%clk 0:04:34.3]} 9... Bg6
{[%clk 0:04:50]} 10. g3 {[%clk 0:04:29.2]} 10... Qc7 {[%clk 0:04:48.4]} 11. Bf4
{[%clk 0:04:27.1]} 11... Bd6 {[%clk 0:04:47.2]} 12. Bxd6 {[%clk 0:04:26]} 12...
Qxd6 {[%clk 0:04:46.6]} 13. Bf3 {[%clk 0:04:19.6]} 13... O-O {[%clk 0:04:45]}
14. Nxg6 {[%clk 0:04:18.4]} 14... hxg6 {[%clk 0:04:44]} 15. Qd2 {[%clk
0:04:11.7]} 15... Rad8 {[%clk 0:04:42.7]} 16. Rad1 {[%clk 0:04:11.2]} 16... e5
{[%clk 0:04:34.8]} 17. Ne4 {[%clk 0:03:55.9]} 17... Nxe4 {[%clk 0:04:29.5]} 18.
Bxe4 {[%clk 0:03:55.1]} 18... Nf6 {[%clk 0:04:27.9]} 19. Bg2 {[%clk 0:03:42.5]}
19... Qxd4 {[%clk 0:04:23.8]} 20. Qxd4 {[%clk 0:03:40.8]} 20... Rxd4 {[%clk
0:04:20.2]} 21. Rxd4 {[%clk 0:03:38.1]} 21... exd4 {[%clk 0:04:19.2]} 22. Re1
{[%clk 0:03:36.2]} 22... Rd8 {[%clk 0:04:12.9]} 23. Re7 {[%clk 0:03:35]} 23...
Rd7 {[%clk 0:04:11.8]} 24. Re1 {[%clk 0:03:27.1]} 24... c5 {[%clk 0:04:06.7]}
25. b4 {[%clk 0:03:20.5]} 25... c4 {[%clk 0:03:44.1]} 26. Rd1 {[%clk 0:03:13.7]}
26... Kf8 {[%clk 0:03:42.2]} 27. Kf1 {[%clk 0:03:11]} 27... Ke7 {[%clk
0:03:36.9]} 28. Ke2 {[%clk 0:03:09.3]} 28... b6 {[%clk 0:03:32.4]} 29. a4 {[%clk
0:03:06.7]} 29... Kd8 {[%clk 0:03:12.5]} 30. a5 {[%clk 0:03:04.5]} 30... b5
{[%clk 0:03:10.9]} 31. Bc6 {[%clk 0:03:01]} 31... Re7+ {[%clk 0:03:10]} 32. Kf3
{[%clk 0:02:59.3]} 32... a6 {[%clk 0:02:58.9]} 33. Rxd4+ {[%clk 0:02:57.1]}
33... Kc7 {[%clk 0:02:58.2]} 34. Be4 {[%clk 0:02:48.6]} 34... Nd7 {[%clk
0:02:48.9]} 35. Kg2 {[%clk 0:02:36.6]} 35... f5 {[%clk 0:02:38.9]} 36. Bf3
{[%clk 0:02:35.6]} 36... Ne5 {[%clk 0:02:34.1]} 37. Bd1 {[%clk 0:02:34.5]} 37...
Nc6 {[%clk 0:02:31.5]} 38. Rd2 {[%clk 0:02:31.3]} 38... Nxb4 {[%clk 0:02:28.8]}
39. f4 {[%clk 0:02:30.3]} 39... Rd7 {[%clk 0:02:17]} 40. Rxd7+ {[%clk
0:02:27.1]} 40... Kxd7 {[%clk 0:02:16]} 41. Kf2 {[%clk 0:02:26.7]} 41... Nc6
{[%clk 0:02:14.5]} 42. Ke3 {[%clk 0:02:25]} 42... Nxa5 {[%clk 0:02:13.1]} 43.
Kd4 {[%clk 0:02:23.6]} 43... Kd6 {[%clk 0:02:12.1]} 44. Bf3 {[%clk 0:02:20.1]}
44... Nc6+ {[%clk 0:02:10.8]} 45. Kc3 {[%clk 0:02:19.6]} 45... Kc5 {[%clk
0:02:09.8]} 46. h4 {[%clk 0:02:14.4]} 46... b4+ {[%clk 0:02:08.8]} 47. Kb2
{[%clk 0:02:13]} 47... Nd4 {[%clk 0:02:07.2]} 48. Bb7 {[%clk 0:02:11.6]} 48...
a5 {[%clk 0:02:05.3]} 49. c3 {[%clk 0:02:06.6]} 49... Ne2 {[%clk 0:02:03.3]} 50.
cxb4+ {[%clk 0:02:04.5]} 50... axb4 {[%clk 0:02:02.5]} 51. Bc8 {[%clk
0:02:02.2]} 51... Nxg3 {[%clk 0:02:01.1]} 52. Be6 {[%clk 0:02:01.6]} 52... Ne2
{[%clk 0:01:56.2]} 0-1